{"text_format":"3","workbook":"xlsx","n_sheets":1,"sheets":["实名编岗位设置方案"],"not_rendered":{"defined_names":3},"read":"whole","date_system":"1900"}

{"sheet":"实名编岗位设置方案","index":0,"n_rows":28,"n_cols":14,"rows_kept":28,"merged":[[0,0,0,13],[25,0,25,1],[25,2,25,13],[26,0,26,1],[26,2,26,9],[26,11,26,13],[27,0,27,1],[27,2,27,9],[27,11,27,13]]}
["广西自然资源职业技术学院2023年度实名编制岗位招聘岗位信息表\n                                                                              制表日期：2023年10月12日"]
["序号","岗位名称","招聘人数","岗位类别及等级","专业","是否全日制","学历学位","年龄","职称或职业资格","政治面貌","其他条件","考试方式","用人方式","备注"]
[{"$f":"ROW()-2","v":1},"财务管理干事",2,"专技12级","会计学类。","否","硕士研究生及以上学历学位","40周岁以下。",null,"中共党员","具有会计专业中级及以上职称可降低为本科学历及学士学位要求。","结构化面试","实名编制","报名资格审查通过的总人数超过10人，增加笔试环节，并按照招聘人数1:3比例筛选进入面试"]
[{"$f":"ROW()-2","v":2},"行政管理干事1",2,"专技12级","公共管理类；社会学类；中国汉语言文学及文秘类。","否","硕士研究生及以上学历学位","40周岁以下。",{"$nulls":3},"结构化面试","实名编制","报名资格审查通过的总人数超过10人，增加笔试环节，并按照招聘人数1:3比例筛选进入面试"]
[3,"行政管理干事2",1,"专技12级","不限专业。","否","硕士研究生及以上学历学位","40周岁以下。",null,"中共党员","具有中级及以上专业技术职称可降低为本科学历及学士学位要求。","结构化面试","实名编制","报名资格审查通过的总人数超过5人，增加笔试环节，并按照招聘人数1:3比例筛选进入面试"]
[4,"行政管理干事3",1,"专技12级","不限专业。","否","具有本科学士及以上学历学位","40周岁以下。","具有中级及以上专业技术职称","中共党员","具有大学英语六级证书。","结构化面试","实名编制","报名资格审查通过的总人数超过5人，增加笔试环节，并按照招聘人数1:3比例筛选进入面试"]
[5,"后勤管理干事",2,"专技12级","建筑类；土木工程专业、建筑与土木工程专业、市政工程专业。","否","具有本科学士及以上学历学位","40周岁以下。","具有中级及以上专业技术职称","中共党员",null,"结构化面试","实名编制","报名资格审查通过的总人数超过10人，增加笔试环节，并按照招聘人数1:3比例筛选进入面试"]
[6,"网络管理技术员",1,"专技12级","计算机科学与技术类。","否","具有本科或学士及以上学历或学位","40周岁以下。","具有中级及以上网络工程师专业技术资格证书",null,null,"结构化面试","实名编制","报名资格审查通过的总人数超过5人，增加笔试环节，并按照招聘人数1:3比例筛选进入面试"]
[7,"心理健康咨询中心辅导老师",1,"专技12级","心理学类。","否","硕士研究生及以上学历学位","40周岁以下。",null,null,"具有中级及以上专业技术职称可降低为本科学历及学士学位要求。","结构化面试","实名编制","报名资格审查通过的总人数超过5人，增加笔试环节，并按照招聘人数1:3比例筛选进入面试"]
[8,"思政课专任教师",4,"专技12级","教育学类；哲学类；政治学类；法律类；马克思主义理论类。","否","硕士研究生及以上学历学位","40周岁以下。",null,"中共党员","具有中级及以上高校教师系列职称可降低为本科学历及学士学位要求。","试讲","实名编制","报名资格审查通过的总人数超过20人，增加笔试环节，并按照招聘人数1:3比例筛选进入面试"]
[9,"英语课专任教师",2,"专技12级","外国语言文学类（英语方向）。","否","硕士研究生及以上学历学位","40周岁以下。",null,null,"具有中级及以上高校教师系列职称可降低为本科学历及学士学位要求。","试讲","实名编制","报名资格审查通过的总人数超过10人，增加笔试环节，并按照招聘人数1:3比例筛选进入面试"]
[10,"体育课专任教师",1,"专技12级","体育学类。","否","硕士研究生及以上学历学位","40周岁以下。",null,null,"具有中级及以上高校教师系列职称可降低为本科学历及学士学位要求。","试讲","实名编制","报名资格审查通过的总人数超过5人，增加笔试环节，并按照招聘人数1:3比例筛选进入面试"]
[11,"数学课专任教师",1,"专技12级","统计学类；数学类。","否","硕士研究生及以上学历学位","40周岁以下。",{"$nulls":3},"试讲","实名编制","报名资格审查通过的总人数超过5人，增加笔试环节，并按照招聘人数1:3比例筛选进入面试"]
[12,"自动化方向专任教师",1,"专技12级","电气、电子及自动化类。","否","硕士研究生及以上学历学位","40周岁以下。",null,null,"具有工程系列或高校教师系列专业中级及以上职称可降低为本科学历及学士学位要求。","试讲","实名编制","报名资格审查通过的总人数超过5人，增加笔试环节，并按照招聘人数1:3比例筛选进入面试"]
[13,"无人机方向专任教师",1,"专技12级","航空航天类。","否","硕士研究生及以上学历学位","40周岁以下。",null,null,"具有工程系列或高校教师系列专业中级及以上职称可降低为本科学历及学士学位要求。","试讲","实名编制","报名资格审查通过的总人数超过5人，增加笔试环节，并按照招聘人数1:3比例筛选进入面试"]
[14,"机械方向专任教师",2,"专技12级","机械类。","否","硕士研究生及以上学历学位","40周岁以下。",null,null,"具有工程系列或高校教师系列专业中级及以上职称可降低为本科学历及学士学位要求。","试讲","实名编制","报名资格审查通过的总人数超过10人，增加笔试环节，并按照招聘人数1:3比例筛选进入面试"]
[15,"大数据与会计专业专任教师",1,"专技12级","会计学类；审计学类；会计学专业、会计专业、财务管理专业。","否","硕士研究生及以上学历学位","40周岁以下。",null,null,"具有中级及以上高校教师系列职称可降低为本科学历及学士学位要求。","试讲","实名编制","报名资格审查通过的总人数超过5人，增加笔试环节，并按照招聘人数1:3比例筛选进入面试"]
[16,"电子商务专任教师",2,"专技12级","工商管理类；电子商务类；经济学类。","否","硕士研究生及以上学历学位","40周岁以下。",null,null,"具有中级及以上高校教师系列职称可降低为本科学历及学士学位要求。","试讲","实名编制","报名资格审查通过的总人数超过10人，增加笔试环节，并按照招聘人数1:3比例筛选进入面试"]
[17,"软件技术专业专任教师",1,"专技12级","计算机应用与网络专业、计算机科学与技术专业、计算机技术专业。","否","硕士研究生及以上学历学位","40周岁以下。",null,null,"具有中级及以上高校教师系列职称可降低为本科学历及学士学位要求。","试讲","实名编制","报名资格审查通过的总人数超过5人，增加笔试环节，并按照招聘人数1:3比例筛选进入面试"]
[18,"土地资源管理专任教师",1,"专技12级","土地资源管理专业、土地规划与利用专业、土地科学与技术专业。","否","硕士研究生及以上学历学位","40周岁以下。",{"$nulls":3},"试讲","实名编制","报名资格审查通过的总人数超过5人，增加笔试环节，并按照招聘人数1:3比例筛选进入面试"]
[19,"地质学方向专任教师",2,"专技12级","地质学类。","否","硕士研究生及以上学历学位","40周岁以下。",{"$nulls":3},"试讲","实名编制","报名资格审查通过的总人数超过10人，增加笔试环节，并按照招聘人数1:3比例筛选进入面试"]
[20,"测绘科学与技术方向专任教师",2,"专技12级","测绘科学与技术类。","否","硕士研究生及以上学历学位","40周岁以下。",null,null,"具有工程系列或高校教师系列专业中级及以上职称可降低为本科学历及学士学位要求。","试讲","实名编制","报名资格审查通过的总人数超过10人，增加笔试环节，并按照招聘人数1:3比例筛选进入面试"]
[21,"建筑规划方向专任教师",3,"专技12级","城市规划与设计专业、城市规划专业、城乡规划专业、风景园林专业、土木工程专业、建筑与土木工程专业、土木工程（专业学位）、交通运输规划与管理专业、交通运输工程专业、交通运输专业。","否","硕士研究生及以上学历学位","40周岁以下。",{"$nulls":3},"试讲","实名编制","报名资格审查通过的总人数超过15人，增加笔试环节，并按照招聘人数1:3比例筛选进入面试"]
[22,"地理科学方向专任教师",1,"专技12级","地理科学类。","否","硕士研究生及以上学历学位","40周岁以下。",{"$nulls":3},"试讲","实名编制","报名资格审查通过的总人数超过5人，增加笔试环节，并按照招聘人数1:3比例筛选进入面试"]
["合计",null,{"$f":"SUM(C3:C24)","v":35}]
["编办批复时间",null,"备案"]
["事业单位意见",null,"填报信息情况属实。   \n              \n                                                             \n                                   （单位公章）                                                                                 \n                                   年    月    日",{"$nulls":7},"联系人及联系方","汪元飞，18978649250"]
["主管部门意见",null,"经认真审核，情况属实，同意报送。\n\n\n                                  （单位公章）                                                                            \n                                   年    月    日 ",{"$nulls":7},"联系人及联系方"]